Workbook

Sheet NSU
B1: Eveliina Kesti | E1: 7.9.1995 Kempele
B2: SUPERPESIS | E2: Runkosarja | I2: Kärkilyönnit (KL), pesänvälit | Q2: Runkosarja | U2: Ylempi loppusarja | Z2: Alempi loppusarja | AG2: Arvo-ottelut ja mitalit
B3: Vuosi | C3: Sija | D3: Seura | E3: OTT | F3: KUN | G3: LÖI | H3: TOI | I3: KL | J3: 0 > 1 | K3: 1 > 2 | L3: 2 > 3 | M3: 3 > k | N3: KL-% | P3: LÖI | Q3: TOI | R3: L+T | S3: KL | U3: OTT | V3: KUN | W3: LÖI | X3: TOI | Y3: KL | Z3: OTT | AA3: KUN | AB3: LÖI | AC3: TOI | AD3: KL | AE3: IL | AF3: LL | AG3: Halli | AH3: K | AI3: H | AJ3: P
B4: 2010 | D4: KeKi | F4: ykköspesis | O4: 0
B5: 2011 | D5: KeKi | F5: ykköspesis
B6: 2012 | D6: Lippo Juniorit | F6: suomensarja
B7: 2012 | C7: 10. | D7: KeKi | E7: 22 | F7: 0 | G7: 2 | H7: 0 | I7: 36 | J7: 9 | K7: 15 | L7: 10 | M7: 2 | N7: 34.0 % | O7: =PRODUCT(I7/N7) -> 105.8823529
B8: 2013 | C8: 5. | D8: KeKi | E8: 24 | F8: 0 | G8: 10 | H8: 3 | I8: 48 | J8: 15 | K8: 12 | L8: 11 | M8: 10 | N8: 35.8 % | O8: =PRODUCT(I8/N8) -> 134.0033501 | U8: 3 | V8: 0 | W8: 0 | X8: 0 | Y8: 4
B9: 2014 | C9: 4. | D9: KeKi | E9: 24 | F9: 1 | G9: 17 | H9: 6 | I9: 79 | J9: 19 | K9: 18 | L9: 24 | M9: 18 | N9: 50.3 % | O9: =PRODUCT(I9/N9) -> 157.0576541 | U9: 8 | V9: 0 | W9: 8 | X9: 2 | Y9: 24
B10: 2015 | C10: 4. | D10: Pesäkarhut | E10: 24 | F10: 3 | G10: 15 | H10: 6 | I10: 69 | J10: 32 | K10: 4 | L10: 15 | M10: 18 | N10: 53.9 % | O10: 128 | U10: 10 | V10: 0 | W10: 6 | X10: 1 | Y10: 26
B11: 2016
B12: 2017 | C12: 4. | D12: KeKi | E12: 25 | F12: 2 | G12: 29 | H12: 2 | I12: 57 | J12: 3 | K12: 4 | L12: 19 | M12: 31 | N12: 36.1 % | O12: 158 | U12: 10 | V12: 0 | W12: 6 | X12: 1 | Y12: 16
B13: 2018 | D13: Pesäkarhut 2 | F13: ykköspesis
B14: 2019 | C14: 7. | D14: Fera | E14: 24 | F14: 0 | G14: 39 | H14: 4 | I14: 68 | J14: 4 | K14: 7 | L14: 18 | M14: 39 | N14: 41.5 % | O14: 164 | P14: 9. | U14: 3 | V14: 0 | W14: 5 | X14: 0 | Y14: 9
B15: 2020 | C15: 8. | D15: Fera | E15: 20 | F15: 1 | G15: 35 | H15: 2 | I15: 58 | J15: 4 | K15: 2 | L15: 16 | M15: 36 | N15: 44.6 % | O15: 130 | U15: 2 | V15: 0 | W15: 1 | X15: 0 | Y15: 4
B16: 2021 | C16: 8. | D16: Fera | E16: 20 | F16: 2 | G16: 31 | H16: 2 | I16: 60 | J16: 1 | K16: 9 | L16: 17 | M16: 33 | N16: 45.8 % | O16: 131 | U16: 3 | V16: 0 | W16: 1 | X16: 0 | Y16: 11
B17: 2023 | C17: 7. | D17: Fera | E17: 24 | F17: 0 | G17: 33 | H17: 3 | I17: 79 | J17: 0 | K17: 5 | L17: 41 | M17: 33 | N17: 47.9 % | O17: 165 | U17: 3 | V17: 0 | W17: 2 | X17: 0 | Y17: 12
B18: 2024 | C18: 5. | D18: Fera | E18: 21 | F18: 0 | G18: 19 | H18: 0 | I18: 39 | J18: 1 | K18: 2 | L18: 17 | M18: 19 | N18: 38.6 % | O18: 101 | U18: 3 | V18: 0 | W18: 8 | X18: 0 | Y18: 11
B19: Yhteensä | E19: =SUM(E4:E18) -> 228 | F19: 9 | G19: 230 | H19: 28 | I19: 593 | J19: 88 | K19: 78 | L19: 188 | M19: 239 | N19: =PRODUCT(I19/O19) -> 43.2 % | O19: =SUM(O4:O18) -> 1373.943357 | U19: 45 | V19: 0 | W19: 37 | X19: 4 | Y19: 117 | Z19: 0 | AA19: 0 | AB19: 0 | AC19: 0 | AD19: 0 | AE19: 0 | AF19: 0 | AG19: 0 | AH19: 0 | AI19: 0 | AJ19: 0
B20: Pesispörssi | D20: =SUM(F19:H19)+((I19-F19-G19)/3)+(E19/3)+(AE19*25)+(AF19*25)+(AG19*10)+(AH19*25)+(AI19*20)+(AJ19*15) -> 461.0
B22: URA SUPERISSA | E22: OTT | F22: KUN | G22: LÖI | H22: TOI | I22: KL | K22: ka/L | L22: ka/T | M22: ka/KL | N22: KL - % | P22: ENSIMMÄISET
B23: Runkosarja | E23: =PRODUCT(E19) -> 228 | F23: =PRODUCT(F19) -> 9 | G23: =PRODUCT(G19) -> 230 | H23: =PRODUCT(H19) -> 28 | I23: =PRODUCT(I19) -> 593 | K23: =PRODUCT((F23+G23)/E23) -> 1.05 | L23: =PRODUCT(H23/E23) -> 0.12 | M23: =PRODUCT(I23/E23) -> 2.60 | N23: =PRODUCT(N19) -> 43.2 % | O23: =PRODUCT(O19) -> 1373.943357 | P23: Ottelu | R23: 10.05. 2012 ViU - KeKi 2-0 (1-0, 6-1) | AA23: 1. ottelu | AC23: 16 v 8 kk 3 pv
B24: Ylempi loppusarja | E24: =PRODUCT(U19) -> 45 | F24: =PRODUCT(V19) -> 0 | G24: =PRODUCT(W19) -> 37 | H24: =PRODUCT(X19) -> 4 | I24: =PRODUCT(Y19) -> 117 | K24: =PRODUCT((F24+G24)/E24) -> 0.82 | L24: =PRODUCT(H24/E24) -> 0.09 | M24: =PRODUCT(I24/E24) -> 2.60 | N24: =PRODUCT(I24/O24) -> 42.4 % | O24: 276 | P24: Lyöty | R24: 25.07. 2012 Lukko - KeKi 0-2 (3-4, 0-3) | AA24: 17. ottelu | AC24: 16 v 10 kk 18 pv
B25: Alempi loppusarja | P25: Tuotu | R25: 30.05. 2013 Kirittäret - KeKi 0-2 (0-4, 3-4) | AA25: 27. ottelu | AC25: 17 v 8 kk 23 pv
B26: KAIKKI | E26: =SUM(E23:E25) -> 273 | F26: =SUM(F23:F25) -> 9 | G26: =SUM(G23:G25) -> 267 | H26: =SUM(H23:H25) -> 32 | I26: =SUM(I23:I25) -> 710 | K26: =PRODUCT((F26+G26)/E26) -> 1.01 | L26: =PRODUCT(H26/E26) -> 0.12 | M26: =PRODUCT(I26/E26) -> 2.60 | N26: =PRODUCT(I26/O26) -> 43.0 % | O26: =SUM(O23:O25) -> 1649.943357 | P26: Kunnari | R26: 30.07. 2014 KeKi - Räpsä 1-0 (13-1, 1-1) | AA26: 69. ottelu | AC26: 18 v 10 kk 23 pv
B28: Seurat | D28: KeKi = Kempeleen Kiri (1915), kasvattajaseura
D29: Lippo Juniorit = Oulun Lippo Juniorit (2003)
D30: Pesäkarhut (1985)
D31: Fera = Fera, Rauma (1958)

Sheet Arvo-ottelut
B1: ITÄ - LÄNSI - KORTTI
B2: Eveliina Kesti | C2: 7.9.1995 Kempele
B3: B-TYTÖT | C3: Itä - Länsi, tulos | D3: Joukkue | E3: Seura | G3: V | H3: T | I3: H | J3: Up. | K3: Lj. | L3: Palk. | M3: O | N3: K | O3: L | P3: T | Q3: KL | R3: 1 | S3: 2 | T3: 3 | U3: k | V3: KL-% | W3: Pelinjohtaja | X3: Yleisöä
B4: 13.07. 2013 Hyvinkää | C4: 0-2 (0-1, 1-3) | D4: Länsi | E4: KeKi | G4: 1 | K4: jok | M4: 1 | O4: 1 | Q4: 2/5 | R4: 1/2 | T4: 0/1 | U4: 1/2 | V4: 40.0 % | W4: Keijo Kitinoja | X4: 1013
B5: 19.07. 2014 Seinäjoki | C5: 0-2 (3-11, 2-4) | D5: Länsi | E5: KeKi | G5: 1 | J5: L | K5: 4 | L5: A | M5: 1 | O5: 5 | Q5: 7/8 | S5: 2/3 | U5: 5/5 | V5: 87.5 % | W5: Sami Österlund | X5: 1682
B6: Yhteensä | G6: =SUM(G2:G5) -> 2 | M6: =SUM(M2:M5) -> 2 | O6: 6 | Q6: 9/13 | R6: 1/2 | S6: 2/3 | T6: 0/1 | U6: 6/7 | V6: 69.2 %
